Cogmind - Beta 14 @@@ ROGUE MODE // 2024.08.27 @ 21:19:49 Player: Grem Result: Destroyed by G-47 Trooper with Particle Gun Performance ------------- Evolutions (2) 1000 Regions Visited (5) 1000 Robots Destroyed (26) 130 Value Destroyed (986) 986 Prototype IDs (3) 60 Alien Tech Used (0) 0 Bonus (200) 200 TOTAL SCORE: 3376 Bonus ------- Entered Garrisons 200 Cogmind --------- Core Integrity 0/550 Matter 300/300 Energy 100/100 System Corruption 0% Temperature Cool (6) Movement Core (50) Location -8/Garrison Parts ------- > --- POWER (2) -------- (None) > --- PROPULSION (4) --- (None) > --- UTILITY (3) ------ (None) > --- WEAPON (2) ------- (None) > --- INVENTORY (5) ---- Light Nuclear Core Improved Heat Sink Light Armor Plating Heavy Armor Plating Peak State ------------ > --- POWER ------------ Heavy Ion Engine Nuclear Core > --- PROPULSION ------- Light Treads Light Treads Surge Thruster Surge Thruster > --- UTILITY ---------- Improved Heat Sink Medium Storage Unit Improved Light Armor Plating > --- WEAPON ----------- EM Pulse Cannon Gauss Rifle > --- INVENTORY -------- Light Nuclear Core Surge Thruster Surge Thruster Improved Heat Sink Target Analyzer Light Armor Plating Heavy Armor Plating [Rating: 30] Favorites ----------- Power Ion Engine Engine Ion Engine Power Core Nuclear Core Propulsion Light Treads Treads Light Treads Wheel Wheel Flight Unit Surge Thruster Utility Small Storage Unit Device Improved Heat Sink Storage Small Storage Unit Protection Improved Light Armor Plating Weapon Particle Gun Energy Gun Particle Gun Energy Cannon EM Pulse Cannon Ballistic Gun Light Assault Rifle Build | -11 -10 -9 -9 -8 -8 ------- Run | Yrd Mat Mat Min Mat Gar Slots Evolved 4 | . . 2 . 2 . Power 1 | . . . . 1 . Propulsion 2 | . . 1 . 1 . Utility 1 | . . 1 . . . Weapon . | . . . . . . Parts Attached 43 | 5 6 7 5 20 . Power 7 | 1 . 1 . 5 . Engine 5 | 1 . 1 . 3 . Core 2 | . . . . 2 . Reactor . | . . . . . . Propulsion 17 | 2 2 3 4 6 . Treads 8 | 1 1 3 . 3 . Leg . | . . . . . . Wheel 2 | 1 1 . . . . Hover . | . . . . . . Flight 7 | . . . 4 3 . Utility 12 | . 3 2 1 6 . Device 5 | . 1 1 . 3 . Storage 3 | . 2 . . 1 . Processor . | . . . . . . Hackware . | . . . . . . Protection 4 | . . 1 1 2 . Artifact . | . . . . . . Weapon 7 | 2 1 1 . 3 . Energy Gun 3 | 1 1 . . 1 . Energy Cannon 1 | . . . . 1 . Ballistic Gun 3 | 1 . 1 . 1 . Ballistic Cannon . | . . . . . . Launcher . | . . . . . . Special Weapon . | . . . . . . Impact Weapon . | . . . . . . Slashing Weapon . | . . . . . . Piercing Weapon . | . . . . . . Special Melee Weapon . | . . . . . . Unidentified Prototypes 1 | . . . . 1 . Parts Lost 17 | . . 3 . 12 2 Power 3 | . . 1 . 2 . Propulsion 8 | . . 1 . 5 2 Utility 4 | . . 1 . 3 . Weapon 2 | . . . . 2 . Highest Loss Streak 10 | . . 3 . 10 2 To Critical Strikes . | . . . . . . Average Slot Usage (%) 77 | . 85 74 80 82 17 Engine 9 | . 14 10 11 7 . Core 1 | . . . . 4 . Treads 13 | . 16 19 1 12 . Wheel 3 | . 11 3 . . . Flight 10 | . . . 31 21 17 Device 4 | . 4 6 1 5 . Storage 9 | . 9 11 11 8 . Protection 4 | . . 2 11 8 . Energy Gun 10 | . 15 11 11 7 . Energy Cannon 1 | . . . . 4 . Ballistic Gun 6 | . 12 10 1 . . Peak Build Rating 30 | 5 8 15 22 30 7 Average Rating 13 | 3 6 9 17 23 6 On Entrance 8 | . 5 8 15 17 7 Naked Turns 7 | . . . . . 7 Heaviest Build 39 | 8 16 20 16 39 . Greatest Support 40 | 10 40 40 9 40 6 Greatest Overweight (x) 1 | . 1 1 1 1 . Average Overweight (x) . | . . . 1 . . Largest Inventory Capacity 20 | 5 20 8 8 10 5 Average Capacity 7 | 5 7 8 8 8 5 Most Carried 9 | 5 2 6 8 9 5 Average Carried 4 | 1 1 1 7 7 5 Final Capacity 8 | 5 8 8 8 5 5 Final Carried 8 | 1 1 6 8 5 5 Class Distribution -------------------- 93% | Mutant 6% | Sprinter Dominant Class ---------------- Mutant | -10/Materials Mutant | -9/Materials Mutant | -9/Mines Mutant | -8/Materials Sprinter | -8/Garrison Resources | -11 -10 -9 -9 -8 -8 ----------- Run | Yrd Mat Mat Min Mat Gar Matter Collected 617 | 185 130 51 70 181 . Remotely . | . . . . . . Salvage Created 1022 | . 248 190 . 584 . Parts 48 | . 8 12 . 28 . Haulers Intercepted . | . . . . . . Recyclers Shooed . | . . . . . . Parts Field Recycled . | . . . . . . Retrieved Matter . | . . . . . . Parts Self-Destructed . | . . . . . . Prevented . | . . . . . . Kills | -11 -10 -9 -9 -8 -8 ------- Run | Yrd Mat Mat Min Mat Gar Combat Hostiles Destroyed 24 | . 7 5 . 12 . Guns 21 | . 5 5 . 11 . Cannons 1 | . . . . 1 . Classes Destroyed 5 | . 2 . . 3 . Worker 2 | . . . . 2 . Swarmer 3 | . 3 . . . . Grunt 17 | . 4 5 . 8 . Sentry 2 | . . . . 2 . Hunter 2 | . . . . 2 . Best Kill Streak 8 | . 3 5 . 8 . Combat Bots Only 7 | . 4 5 . 7 . Max Kills in Single Turn 1 | . 1 1 . 1 . Gunslinging . | . . . . . . Exploded . | . . . . . . Melee . | . . . . . . Uniques/NPCs Destroyed . | . . . . . . Combat | -11 -10 -9 -9 -8 -8 -------- Run | Yrd Mat Mat Min Mat Gar Hostile Shots Fired 301 | . 34 33 . 186 48 Missed 99 | . 15 5 . 53 26 Damage Taken 2701 | . 232 347 . 1845 277 Core 640 | . 42 48 . 396 154 Absorbed by Shields 64 | . . . . . 64 Regen/Repaired (Parts) 50 | . . 50 . . . Core Remaining (%) 90 | 100 83 . 88 . . Volleys Fired 117 | . 42 22 . 53 . Largest 2 | . 1 2 . 2 . Hottest 126 | . 65 88 . 126 . Shots Fired 142 | . 42 28 . 72 . Gun 123 | . 42 28 . 53 . Cannon 19 | . . . . 19 . Launcher . | . . . . . . Special . | . . . . . . Kinetic 18 | . 5 6 . 7 . Thermal 105 | . 37 22 . 46 . Explosive . | . . . . . . Electromagnetic 19 | . . . . 19 . Robot Hit Streak 17 | . 13 8 . 17 . Robot Miss Streak 4 | . 2 2 . 4 . Penetration Max . | . . . . . . Secondary Targets . | . . . . . . Shots Hit Robots 108 | . 32 21 . 55 . Core Hits 49 | . 10 9 . 30 . Critical Kills . | . . . . . . Critical Parts Destroyed . | . . . . . . Critical Strikes 6 | . 3 1 . 2 . Burn 6 | . 3 1 . 2 . Melee Attacks . | . . . . . . Impact . | . . . . . . Slashing . | . . . . . . Piercing . | . . . . . . Sneak Attacks . | . . . . . . Combat Hostiles . | . . . . . . Follow-up Attacks . | . . . . . . Damage Inflicted 1961 | . 387 322 . 1252 . Guns 1417 | . 387 315 . 715 . Cannons 325 | . . . . 325 . Explosions 205 | . . . . 205 . Melee . | . . . . . . Ramming 14 | . . 7 . 7 . Kinetic 138 | . 33 69 . 36 . Thermal 1484 | . 354 246 . 884 . Explosive . | . . . . . . Electromagnetic 325 | . . . . 325 . Impact . | . . . . . . Slashing . | . . . . . . Piercing . | . . . . . . Highest Corruption . | . . . . . . Average Corruption . | . . . . . . Corruption Purged . | . . . . . . Corruption Blocked . | . . . . . . Overload Shots . | . . . . . . Overflow Damage 19 | . . . . 19 . Projectiles . | . . . . . . Explosions 19 | . . . . 19 . Melee . | . . . . . . Knockbacks . | . . . . . . Impact . | . . . . . . Kinetic . | . . . . . . Secondary . | . . . . . . Self-Inflicted Damage 83 | . . . . 83 . Shots 2 | . . . . 2 . Rammed 3 | . . 1 . 2 . Targets Rammed 3 | . . 1 . 2 . Kicked . | . . . . . . Crushed . | . . . . . . Highest Temperature 303 | . 30 226 . 303 . Average Temperature 91 | . 8 84 . 116 . Received Heat Transfer 1251 | . 138 213 . 765 135 Siege Activations . | . . . . . . Robots Corrupted . | . . . . . . Combat Hostiles . | . . . . . . Parts Fried 1 | . . . . 1 . Impact Corruptions . | . . . . . . Robots Melted 2 | . 2 . . . . Combat Hostiles 2 | . 2 . . . . Parts Melted 7 | . 3 . . 4 . Heat Transferred 3802 | . 1258 666 . 1878 . Parts Sabotaged . | . . . . . . Parts Stolen . | . . . . . . Parts Stripped . | . . . . . . Power Chain Reactions 3 | . . . . 3 . Alert | -11 -10 -9 -9 -8 -8 ------- Run | Yrd Mat Mat Min Mat Gar Peak Influence 361 | . 334 194 19 361 247 Initial 152 | . . 56 19 7 152 Average 150 | . 117 130 19 207 185 Maximum Alert Level 1 | . 1 . . 1 1 Low Security (%) 71 | 100 73 100 100 46 65 Level 1 28 | . 26 . . 53 34 Level 2 . | . . . . . . Level 3 . | . . . . . . Level 4 . | . . . . . . Level 5 . | . . . . . . High Security . | . . . . . . Max Security . | . . . . . . Squads Dispatched 6 | . 1 1 . 4 . Investigation 3 | . . 1 . 2 . Extermination . | . . . . . . Reinforcement 3 | . 1 . . 2 . Assault . | . . . . . . Garrison . | . . . . . . Intercept . | . . . . . . Searches Triggered . | . . . . . . Construction Impeded . | . . . . . . Haulers Reinforced . | . . . . . . Active Scanning Responses . | . . . . . . Cargo Convoy Interrupts . | . . . . . . Stealth | -11 -10 -9 -9 -8 -8 --------- Run | Yrd Mat Mat Min Mat Gar Distress Signals 3 | . 2 . . 1 . Communications Jammed . | . . . . . . Distress Signals . | . . . . . . Times Spotted 71 | . 16 8 . 37 10 Peak Tracking Total 18 | . 6 5 . 18 9 Tactical Retreats 8 | . 4 1 . 2 1 Traps | -11 -10 -9 -9 -8 -8 ------- Run | Yrd Mat Mat Min Mat Gar Traps Triggered 5 | . . . . . 5 Indirectly . | . . . . . . Trap Hack Attempts . | . . . . . . Triggered . | . . . . . . Disarmed . | . . . . . . Reprogrammed . | . . . . . . Reused . | . . . . . . Traps Extracted . | . . . . . . Installed . | . . . . . . Triggered . | . . . . . . Machines | -11 -10 -9 -9 -8 -8 ---------- Run | Yrd Mat Mat Min Mat Gar Machines Disabled 3 | . . . . 3 . Max in Single Turn 2 | . . . . 2 . Machines Repaired . | . . . . . . Machines Dismantled . | . . . . . . Machines Sabotaged . | . . . . . . Overloaded Fab Kills . | . . . . . . Hacking | -11 -10 -9 -9 -8 -8 --------- Run | Yrd Mat Mat Min Mat Gar Machines Accessed 13 | . 4 4 . 5 . Terminals 9 | . 4 2 . 3 . Fabricators . | . . . . . . Repair Stations 2 | . . 1 . 1 . Recycling Units 1 | . . 1 . . . Scanalyzers . | . . . . . . Garrison Access 1 | . . . . 1 . Total Hacks 37 | . 11 12 . 14 . Successful 22 | . 7 6 . 9 . Failed 15 | . 4 6 . 5 . Catastrophic 3 | . 1 1 . 1 . Database Lockouts . | . . . . . . Manual . | . . . . . . Terminals 25 | . 11 5 . 9 . Fabricators . | . . . . . . Repair Stations 8 | . . 5 . 3 . Recycling Units 2 | . . 2 . . . Scanalyzers . | . . . . . . Garrison Access 2 | . . . . 2 . Terminal Hacks 14 | . 7 2 . 5 . Prototype ID Bank 1 | . 1 . . . . Unreport Threat 2 | . . 1 . 1 . Locate Traps 1 | . 1 . . . . Dispatch Records 2 | . 2 . . . . Maintenance Status 1 | . . . . 1 . Recall Reinforcements 1 | . . 1 . . . Hauler Manifests 1 | . 1 . . . . Registered Components 1 | . . . . 1 . Zone Layout 4 | . 2 . . 2 . Fabricator Hacks . | . . . . . . Repair Station Hacks 6 | . . 4 . 2 . Scan Component 4 | . . 2 . 2 . Repair 2 | . . 2 . . . Recycling Unit Hacks . | . . . . . . Scanalyzer . | . . . . . . Garrison Access Hacks 2 | . . . . 2 . Unlock Access 1 | . . . . 1 . Coupler Status 1 | . . . . 1 . Unauthorized Hacks . | . . . . . . Terminals . | . . . . . . Fabricators . | . . . . . . Repair Stations . | . . . . . . Recycling Units . | . . . . . . Scanalyzers . | . . . . . . Garrison Access . | . . . . . . Data Cores Recovered . | . . . . . . Used . | . . . . . . Hacking Detections 11 | . 3 3 . 5 . Full Trace Events 4 | . . 2 . 2 . Feedback Events . | . . . . . . Feedback Blocked . | . . . . . . Robot Schematics Acquired . | . . . . . . Robots Built . | . . . . . . Authchips . | . . . . . . Time . | . . . . . . Total Robot Build Rating . | . . . . . . Part Schematics Acquired . | . . . . . . Parts Built . | . . . . . . Authchips . | . . . . . . Time . | . . . . . . Total Part Build Rating . | . . . . . . Parts Repaired 2 | . . 2 . . . Time 52 | . . 52 . . . Parts Recycled . | . . . . . . Recycled Matter . | . . . . . . Retrieved Matter . | . . . . . . Retrieved Components . | . . . . . . Parts Scanalyzed . | . . . . . . Part Schematics Acquired . | . . . . . . Parts Damaged . | . . . . . . Bothacking | -11 -10 -9 -9 -8 -8 ------------ Run | Yrd Mat Mat Min Mat Gar Used RIF Installer . | . . . . . . Robots Hacked . | . . . . . . Non-combat . | . . . . . . Combat . | . . . . . . Robot Hacks Applied . | . . . . . . Relay Couplers Released . | . . . . . . Fabnet Peak Effective % . | . . . . . . Robots Rewired . | . . . . . . Allies Hacked . | . . . . . . Hacks Repelled . | . . . . . . Allies | -11 -10 -9 -9 -8 -8 -------- Run | Yrd Mat Mat Min Mat Gar Total Allies . | . . . . . . Largest Group . | . . . . . . Highest-Rated Group . | . . . . . . Highest-Rated Ally . | . . . . . . Total Orders . | . . . . . . Ally Attacks . | . . . . . . Total Damage . | . . . . . . Kills . | . . . . . . Allies Corrupted . | . . . . . . Allies Melted . | . . . . . . Intel | -11 -10 -9 -9 -8 -8 ------- Run | Yrd Mat Mat Min Mat Gar Robot Analysis Total . | . . . . . . Derelict Logs Recovered 1 | . . . 1 . . Drone Launches . | . . . . . . Drone Recoveries . | . . . . . . Exploration | -11 -10 -9 -9 -8 -8 ------------- Run | Yrd Mat Mat Min Mat Gar Turns Passed 1557 | 43 405 378 66 571 94 Spaces Moved 1188 | 45 342 201 82 404 114 Core 12 | 11 . . . . 1 Treads 281 | . 6 141 . 134 . Legs . | . . . . . . Wheels 430 | 34 336 60 . . . Hover . | . . . . . . Flight 465 | . . . 82 270 113 Fastest Speed 29 | 50 80 95 69 29 32 Average Speed 91 | 72 89 140 69 90 32 Slowest Speed 240 | 80 160 160 69 240 50 Overloaded Moves . | . . . . . . Propulsion Burnouts . | . . . . . . Robots Hopped 5 | . . . . 5 . Cave-ins Triggered . | . . . . . . Exploration Rate (%) 27 | 3 49 18 17 49 29 Regions Visited 5 Branch Regions 1 Pre-discovered Areas . | . . . . . . Known Exits Taken 1 | . . . . 1 . Unknown Exits Taken 4 | 1 1 1 1 . . Scrap Searched 1 | . . . 1 . . Spaces Dug . | . . . . . . Terrain Destroyed 14 | . . . . 14 . Melee . | . . . . . . Projectile 3 | . . . . 3 . AOE 11 | . . . . 11 . Terrain Rammed . | . . . . . . Walls Destroyed . | . . . . . . Machines Disabled . | . . . . . . Actions | -11 -10 -9 -9 -8 -8 --------- Run | Yrd Mat Mat Min Mat Gar Total 1521 | 55 399 268 93 534 172 Wait 64 | . 3 25 . 34 2 Move 1174 | 44 341 200 81 394 114 Hop 4 | . . . . 4 . Pick Up 38 | 6 4 12 2 14 . Fast Attach . | . . . . . . Attach 34 | 5 5 7 3 14 . Detach 8 | . 1 . 4 3 . Swap 9 | . 1 . 2 6 . Drop 14 | . 2 1 1 10 . Fire 117 | . 42 22 . 53 . Melee . | . . . . . . Ram . | . . . . . . Kick . | . . . . . . Crush 3 | . . 1 . 2 . Escape Stasis 56 | . . . . . 56 Rewire . | . . . . . . Trap . | . . . . . . Miscellaneous . | . . . . . . Route ------- -11/Scrapyard -10/Materials -9/Materials -9/Mines -8/Materials -8/Garrison History --------- Turn | Location | Event 8 | -11/Scrapyard | Discovered new exit (range 15) 44 | -11/Scrapyard | Entered Materials 183 | -10/Materials | Discovered new exit (range 10) 300 | -10/Materials | Build established: Mutant 449 | -10/Materials | Entered another Materials area 449 | -9/Materials | Evolved 2 slots: Propulsion x1, Utility x1 482 | -9/Materials | Repaired Lgt. Treads 508 | -9/Materials | Repaired Lgt. Treads 614 | -9/Materials | Lost 3 parts (1p1n1u) 702 | -9/Materials | Discovered new exit (range 11) 827 | -9/Materials | Entered Mines 830 | -9/Mines | Met a Derelict bent on vengeance 847 | -9/Mines | Discovered new exit (range 3) 863 | -9/Mines | Learned Materials emergency access door positions 893 | -9/Mines | Entered Materials 893 | -8/Materials | Evolved 2 slots: Power x1, Propulsion x1 1108 | -8/Materials | Destroyed 7 combat bots 1446 | -8/Materials | Core integrity fell below 50% 1464 | -8/Materials | Identified exit to Garrison 1464 | -8/Materials | Entered Garrison 1466 | -8/Garrison | Lost 10 parts (2p4n2u2w) 1510 | -8/Garrison | Triggered checkpoint 1526 | -8/Garrison | Triggered checkpoint 1547 | -8/Garrison | Core integrity fell below 20% 1558 | -8/Garrison | Destroyed by G-47 Trooper with Particle Gun Last Messages --------------- A bubble of rippling energy engulfs the area. Field strength at 95. Field strength at 90. Field strength at 72. Field strength at 67. Field strength at 62. G-47 Trooper suffers critical hit (Burn). Surge Thruster destroyed. Field strength at 48. Field strength at 42. Field strength at 27. Field strength at 17. Field strength at 7. Field strength at 1. Stasis field depleted. Triggered Stasis Trap. A bubble of rippling energy engulfs the area. Field strength at 94. Field strength at 88. Field strength at 73. Map ----- +----------------------------------------------------+ | ??????????????????????????????????????????# #???? | | ??????????????????????????????????????????# #???? | | ???????????????????????????????######""""## ##??? | | ???????????????????????????????# #### | | ????????????????????????????? | | ????????????????????????????? | | ??????????????????????????????## ## ## #### | | ???????????????????????????????# ## ## ###? | | ???????????????????????????????" #? | | ???????????????????????????????" #? | | ???????????????????????????????" #? | | ???????????????????????????????" ?? | | ???????????????????????????????# ## ## #??? | | ???????????????????????????????# ## ## #### | | ???????????????????????????????# | | ???????????????????????????????# | | ???????????????????????????????# | | ???????????????????????????????# ## #####T### | | ???????????????????????????????# ## #???###?? | | ???????????????????????????????# #######???????? | | ???????????????????????????????# #?????????????? | | ???????????????????????????????# #?????????????? | | ???????????????????????????????# #?????????????? | | ???????????????????????????????# #?????????????? | | ?????????????????###############g #?????????????? | | ?????????? @ gY #?????????????? | | ?????????? ^ g Y #?????????????? | | ?????????? ^ g #?????????????? | | ???????????############ ######### #?????????????? | | ??????????????????????# ????????# #?????????????? | | ??????????????????????# ????????? #?????????????? | | ??????????????????????# ????????? #?????????????? | | ??????????????????????# ????????? #?????????????? | | ??????????????????????# ????????? #?????????????? | | ??????????????????????# ?????????? #?????????????? | | ??????????????????????# ?????????? ??????????????? | | ??????????????????????# ?????????? ??????????????? | | ??????????????????????# ?????????????????????????? | | ??????????????????????# ?????????????????????????? | | ??????????????????????#??????????????????????????? | | ?????????????????????????????????????????????????? | | ?????????????????????????????????????????????????? | | ?????????????????????????????????????????????????? | | ?????????????????????????????????????????????????? | | ?????????????????????????????????????????????????? | | ?????????????????????????????????????????????????? | | ?????????????????????????????????????????????????? | | ?????????????????????????????????????????????????? | | ?????????????????????????????????????????????????? | | ?????????????????????????????????????????????????? | +----------------------------------------------------+ Best States ------------- Heat Dissipation 45 Energy Generation 23 Energy Capacity 420 Matter Stores 300 Matter Capacity 300 Sight Range 16 Terrain Scan Density 10 Armor Coverage 375 Evasion (%) 63 Recoil Reduction 2 Item Schematics ----------------- None Robot Schematics ------------------ None Fabricated ------------ Nothing Alien Tech Used ----------------- None Achievements -------------- It's Just You Shopping List Challenges ------------ None Game ------ Seed RestorationThermalArmor Manual? 0 Play Time 00:39:58 Cumulative 5.8 hours Start 2024.08.27 @ 20:22:01 End 2024.08.27 @ 21:19:49 Sessions 1 Manual Loads 0 Difficulty Rogue Special Mode None Game No. 8 Rogue 8 Adventurer 0 Explorer 0 Win Type - Total 0 Types 0/0/0/0/0/0/0/0/0 Lore% 2 Gallery% 11 Achievement% 11 Wizard Run 0 Options --------- Layout 1 ASCII 0 Keyboard 1 Movement Vi Keybinds 0 Fullscreen 2 Font 32/SmallcapsGlow Map View 50x35 Zoom Use 0% Tactical HUD 0 Map Filters NONE Filters NONE Steam 1 RUN: a203f088-7eab-485e-8b91-ea3c766e2e5e